Cogmind - Beta 15 @@@ ROGUE MODE // 2025.08.23 @ 16:25:58 Player: saltine Result: Core destroyed Performance ------------- Evolutions (2) 1000 Regions Visited (3) 600 Robots Destroyed (32) 160 Value Destroyed (1153) 1153 Prototype IDs (13) 260 Alien Tech Used (0) 0 Bonus (-49) -49 TOTAL SCORE: 3124 Bonus ------- Friendly Fire -49 Cogmind --------- Core Integrity 0/550 Matter 166/300 Energy 100/100 System Corruption 9% Temperature Cool (0) Movement Core (50) Location -8/Materials Parts ------- > --- POWER (1) -------- (None) > --- PROPULSION (5) --- (None) > --- UTILITY (3) ------ (None) > --- WEAPON (2) ------- (None) > --- INVENTORY (5) ---- Ion Engine Subdweller Laser Subdweller Shrapnel Launcher Subdweller Shrapnel Launcher Multitool Peak State ------------ > --- POWER ------------ (None) > --- PROPULSION ------- Cargo Legs > --- UTILITY ---------- Small Storage Unit Large Storage Unit > --- WEAPON ----------- (None) > --- INVENTORY -------- Ion Engine Seismic Detector Subdweller Laser Subdweller Shrapnel Launcher Subdweller Shrapnel Launcher Multitool [Rating: 19] Favorites ----------- Power Ion Engine Engine Ion Engine Propulsion Light Treads Treads Light Treads Leg Cargo Legs Wheel Subdweller Monowheel Utility Small Storage Unit Device Seismic Detector Storage Small Storage Unit Weapon Assault Rifle Energy Gun Subdweller Laser Energy Cannon Subdweller Beam Cannon Ballistic Gun Assault Rifle Ballistic Cannon Battle Cannon Launcher Subdweller Shrapnel Launcher Build | -11 -10 -10 -8 ------- Run | Yrd Mat Sub Mat Slots Evolved 4 | . . . 4 Power . | . . . . Propulsion 3 | . . . 3 Utility 1 | . . . 1 Weapon . | . . . . Parts Attached 23 | 8 1 10 4 Power 2 | 1 1 . . Engine 2 | 1 1 . . Core . | . . . . Reactor . | . . . . Propulsion 8 | 3 . 4 1 Treads 3 | 2 . 1 . Leg 1 | . . . 1 Wheel 4 | 1 . 3 . Hover . | . . . . Flight . | . . . . Utility 3 | 2 . . 1 Device 1 | 1 . . . Storage 2 | 1 . . 1 Processor . | . . . . Hackware . | . . . . Protection . | . . . . Artifact . | . . . . Weapon 10 | 2 . 6 2 Energy Gun 1 | . . 1 . Energy Cannon 2 | . . 2 . Ballistic Gun 4 | 2 . 1 1 Ballistic Cannon 1 | . . 1 . Launcher 2 | . . 1 1 Special Weapon . | . . . . Impact Weapon . | . . . . Slashing Weapon . | . . . . Piercing Weapon . | . . . . Special Melee Weapon . | . . . . Unidentified Prototypes . | . . . . Parts Lost 10 | . . 4 6 Power 1 | . . . 1 Propulsion 5 | . . 3 2 Utility . | . . . . Weapon 4 | . . 1 3 Highest Loss Streak 6 | . . 1 6 To Critical Strikes . | . . . . Average Backups 6 | 3 7 6 6 Power 1 | . 2 1 1 Propulsion . | 1 2 . . Utility . | . . . 1 Weapon 3 | . 2 3 3 Tool/Special . | . . . . Unused Backups 10 | . 1 7 2 Power 3 | . 1 1 1 Propulsion . | . . . . Utility 1 | . . 1 . Weapon 4 | . . 4 . Tool/Special 2 | . . 1 1 Average Slot Usage (%) 95 | . 100 97 32 Engine 13 | . 14 14 2 Treads 18 | . 28 19 . Wheel 7 | . . 8 5 Device 12 | . 14 12 1 Storage 13 | . 14 14 12 Energy Gun 6 | . . 6 1 Energy Cannon 8 | . . 9 . Ballistic Gun 11 | . 28 11 1 Peak Build Rating 19 | 7 7 13 19 Average Rating 9 | 6 7 9 14 On Entrance 6 | . 7 7 12 Naked Turns 6 | . . . 6 Heaviest Build 28 | 13 15 27 28 Greatest Support 55 | 40 40 40 55 Greatest Overweight (x) 9 | 1 . 7 9 Average Overweight (x) . | . . . . Largest Inventory Capacity 15 | 8 8 8 15 Average Capacity 8 | 7 8 8 14 Most Carried 10 | 4 8 8 10 Average Carried 6 | 3 7 6 7 Final Capacity 8 | 8 8 8 5 Final Carried 8 | 4 8 8 5 Class Distribution -------------------- 98% | Mutant Dominant Class ---------------- Mutant | -10/Materials Mutant | -10/Subcaves Mutant | -8/Materials Resources | -11 -10 -10 -8 ----------- Run | Yrd Mat Sub Mat Matter Collected 700 | 271 54 375 . Remotely . | . . . . Salvage Created 1179 | 30 122 760 267 Parts 59 | 2 10 44 3 Haulers Intercepted . | . . . . Recyclers Shooed 1 | . . . 1 Parts Field Recycled . | . . . . Retrieved Matter . | . . . . Parts Self-Destructed 13 | . . 13 . Prevented . | . . . . Kills | -11 -10 -10 -8 ------- Run | Yrd Mat Sub Mat Combat Hostiles Destroyed 28 | . 2 16 10 Melee 1 | . . . 1 Guns 9 | . 2 7 . Cannons 11 | . . 9 2 AOE 7 | . . . 7 Classes Destroyed 9 | 1 1 4 3 Tunneler 2 | 1 1 . . Recycler 1 | . . . 1 Watcher 1 | . . . 1 Swarmer 2 | . . 2 . Grunt 7 | . 2 . 5 Brawler 2 | . . . 2 Sentry 4 | . . 1 3 Artisan 2 | . . 2 . Subdweller 13 | . . 13 . Best Kill Streak 11 | 1 2 2 11 Combat Bots Only 9 | . 2 2 9 Max Kills in Single Turn 3 | 1 1 1 3 Gunslinging . | . . . . Exploded 2 | . . . 2 Melee 1 | . . . 1 Uniques/NPCs Destroyed . | . . . . Combat | -11 -10 -10 -8 -------- Run | Yrd Mat Sub Mat Hostile Shots Fired 163 | . 9 55 99 Missed 42 | . 1 13 28 Hits 121 | . 8 42 71 Melee 5 | . . . 5 Projectile 116 | . 8 42 66 AOE 1 | . . 1 . Critical Strikes 7 | . . 3 4 Damage Taken 2417 | . 115 933 1369 Core 756 | . 50 155 551 Absorbed by Shields . | . . . . Core Remaining (%) 59 | 100 . 18 . Volleys Fired 94 | 1 8 65 20 Largest 2 | 2 2 2 2 Hottest 160 | 40 40 160 93 Shots Fired 156 | 2 16 108 30 Gun 84 | 2 16 56 10 Cannon 62 | . . 51 11 Launcher 10 | . . 1 9 Special . | . . . . Kinetic 82 | 2 16 34 30 Thermal 74 | . . 74 . Explosive . | . . . . Electromagnetic . | . . . . Robot Hit Streak 22 | 1 13 22 10 Robot Miss Streak 3 | 1 1 3 3 Penetration Max . | . . . . Secondary Targets . | . . . . Shots Hit Robots 113 | 1 14 74 24 Core Hits 59 | 1 6 24 28 Critical Kills 1 | . . 1 . Critical Parts Destroyed . | . . . . Critical Strikes 2 | . . 1 1 Destroy 1 | . . 1 . Blast 1 | . . . 1 Melee Attacks . | . . . . Impact . | . . . . Slashing . | . . . . Piercing . | . . . . Sneak Attacks . | . . . . Combat Hostiles . | . . . . Follow-up Attacks . | . . . . Damage Inflicted 3471 | 19 173 1645 1634 Guns 790 | 11 171 455 153 Cannons 1208 | . . 1021 187 Explosions 1270 | . . 169 1101 Melee . | . . . . Ramming 203 | 8 2 . 193 Kinetic 2120 | 11 171 497 1441 Thermal 1148 | . . 1148 . Explosive . | . . . . Electromagnetic . | . . . . Impact . | . . . . Slashing . | . . . . Piercing . | . . . . Highest Corruption 9 | . . . 9 Average Corruption 7 | . . . 7 Corruption Purged . | . . . . Corruption Blocked . | . . . . Effects 4 | . . . 4 Message Errors 2 | . . . 2 Matter Fused 1 | . . . 1 Heat Flow Errors 1 | . . . 1 Overload Shots . | . . . . Overflow Damage 15 | . . . 15 Projectiles . | . . . . Explosions 15 | . . . 15 Melee . | . . . . Knockbacks 3 | . . . 3 Impact 3 | . . . 3 Kinetic . | . . . . Secondary . | . . . . Self-Inflicted Damage 164 | . . . 164 Shots 4 | . . . 4 Rammed 7 | 6 1 . . Targets Rammed 55 | 6 1 . 48 Kicked 48 | . . . 48 Crushed . | . . . . Highest Temperature 427 | . 2 427 179 Average Temperature 125 | . 2 169 40 Received Heat Transfer 714 | . 63 84 567 Effects 1 | . . 1 . Shutdowns 1 | . . 1 . Siege Activations . | . . . . Martial Activations . | . . . . Shielding Activations . | . . . . Robots Disrupted . | . . . . Combat Hostiles . | . . . . Robots Corrupted . | . . . . Combat Hostiles . | . . . . Parts Fried . | . . . . Impact Corruptions . | . . . . Robots Melted . | . . . . Combat Hostiles . | . . . . Parts Melted 5 | . . 5 . Heat Transferred 1519 | . . 1519 . Parts Sabotaged . | . . . . Parts Stolen . | . . . . Parts Stripped . | . . . . Power Chain Reactions . | . . . . Alert | -11 -10 -10 -8 ------- Run | Yrd Mat Sub Mat Maximum Alert Level 1 | . . . 1 Low Security (%) 92 | 100 100 . 78 Level 1 7 | . . . 21 Level 2 . | . . . . Level 3 . | . . . . Level 4 . | . . . . Level 5 . | . . . . High Security . | . . . . Max Security . | . . . . Peak Influence 224 | 5 43 . 224 Initial . | . . . . Average 50 | . 11 . 138 Influence Increases 467 | 5 68 70 324 Destroy 0b10 Robot/C 300 | . 40 60 200 Destroy 0b10 Robot/NC 20 | 5 5 . 10 Destroy Leader 72 | . 10 10 52 Successful Hack 12 | . 12 . . Destroy Structure 63 | . 1 . 62 Influence Decreases 293 | 5 40 98 150 Entered New Map 14 | . . 14 . Time Decay 209 | 5 40 74 90 Lost Part 70 | . . 10 60 Squads Dispatched . | . . . . Investigation . | . . . . Extermination . | . . . . Reinforcement . | . . . . Assault . | . . . . Garrison . | . . . . Intercept . | . . . . Searches Triggered . | . . . . Construction Impeded . | . . . . Haulers Reinforced . | . . . . Active Scanning Responses . | . . . . Cargo Convoy Interrupts . | . . . . Stealth | -11 -10 -10 -8 --------- Run | Yrd Mat Sub Mat Distress Signals . | . . . . Communications Jammed . | . . . . Distress Signals . | . . . . Times Spotted 31 | . 4 16 11 Peak Tracking Total 8 | . 4 3 8 Tactical Retreats . | . . . . Traps | -11 -10 -10 -8 ------- Run | Yrd Mat Sub Mat Traps Triggered 1 | . . 1 . Indirectly . | . . . . Trap Hack Attempts . | . . . . Triggered . | . . . . Disarmed . | . . . . Reprogrammed . | . . . . Reused . | . . . . Traps Extracted . | . . . . Installed . | . . . . Triggered . | . . . . Machines | -11 -10 -10 -8 ---------- Run | Yrd Mat Sub Mat Machines Disabled 1 | . . 1 . Max in Single Turn 1 | . . 1 . Machines Repaired . | . . . . Machines Dismantled . | . . . . Machines Sabotaged . | . . . . Overloaded Fab Kills . | . . . . Hacking | -11 -10 -10 -8 --------- Run | Yrd Mat Sub Mat Machines Accessed 5 | . 2 3 . Terminals 1 | . 1 . . Fabricators . | . . . . Repair Stations . | . . . . Recycling Units 1 | . 1 . . Scanalyzers . | . . . . Garrison Access . | . . . . Total Hacks 15 | . 8 7 . Successful 12 | . 5 7 . Failed 3 | . 3 . . Catastrophic . | . . . . Database Lockouts . | . . . . Manual 2 | . 2 . . Terminals 4 | . 4 . . Fabricators . | . . . . Repair Stations . | . . . . Recycling Units 4 | . 4 . . Scanalyzers . | . . . . Garrison Access . | . . . . Terminal Hacks 9 | . 2 7 . Record 5 | . . 5 . Prototype ID Bank 1 | . 1 . . Open Door 1 | . . 1 . Branch Access Points 1 | . 1 . . Proto ID Catalog 1 | . . 1 . Fabricator Hacks . | . . . . Repair Station Hacks . | . . . . Recycling Unit Hacks 2 | . 2 . . Retrieve Components 2 | . 2 . . Scanalyzer . | . . . . Garrison Access Hacks . | . . . . Unauthorized Hacks 1 | . 1 . . Terminals 1 | . 1 . . Track 1 | . 1 . . Fabricators . | . . . . Repair Stations . | . . . . Recycling Units . | . . . . Scanalyzers . | . . . . Garrison Access . | . . . . Data Cores Recovered . | . . . . Used . | . . . . Hacking Detections 2 | . 2 . . Full Trace Events . | . . . . Feedback Events . | . . . . Feedback Blocked . | . . . . Robot Schematics Acquired . | . . . . Robots Built . | . . . . Authchips . | . . . . Time . | . . . . Total Robot Build Rating . | . . . . Part Schematics Acquired . | . . . . Parts Built . | . . . . Authchips . | . . . . Time . | . . . . Total Part Build Rating . | . . . . Parts Repaired . | . . . . Time . | . . . . Parts Recycled . | . . . . Recycled Matter . | . . . . Retrieved Matter . | . . . . Retrieved Components . | . . . . Parts Scanalyzed . | . . . . Part Schematics Acquired . | . . . . Parts Damaged . | . . . . Bothacking | -11 -10 -10 -8 ------------ Run | Yrd Mat Sub Mat Used RIF Installer . | . . . . Robots Hacked . | . . . . Non-combat . | . . . . Combat . | . . . . Robot Hacks Applied . | . . . . Relay Couplers Released . | . . . . Fabnet Peak Effective % . | . . . . Robots Rewired . | . . . . Allies Hacked . | . . . . Hacks Repelled . | . . . . Allies | -11 -10 -10 -8 -------- Run | Yrd Mat Sub Mat Total Allies . | . . . . Largest Group . | . . . . Highest-Rated Group . | . . . . Highest-Rated Ally . | . . . . Total Orders . | . . . . Ally Attacks . | . . . . Total Damage . | . . . . Kills . | . . . . Allies Corrupted . | . . . . Allies Melted . | . . . . Intel | -11 -10 -10 -8 ------- Run | Yrd Mat Sub Mat Active Infowar (turns) 4244 | 136 177 3911 20 Seismic 4244 | 136 177 3911 20 Robot Analysis Total . | . . . . Derelict Logs Recovered 1 | . . 1 . Drone Launches . | . . . . Drone Recoveries . | . . . . Exploration | -11 -10 -10 -8 ------------- Run | Yrd Mat Sub Mat Turns Passed 4837 | 217 177 4241 202 Spaces Moved 2334 | 121 87 2070 56 Core 29 | 4 . 24 1 Treads 1814 | 117 87 1610 . Legs 41 | . . . 41 Wheels 450 | . . 436 14 Hover . | . . . . Flight . | . . . . Fastest Speed 50 | 50 160 95 105 Average Speed 168 | 157 160 170 130 Slowest Speed 500 | 160 160 400 500 Overloaded Moves . | . . . . Propulsion Burnouts . | . . . . Robots Hopped . | . . . . Potential Cave-ins . | . . . . Cave-ins Triggered . | . . . . Exploration Rate (%) 29 | 5 16 86 10 Regions Visited 3 Branch Regions 1 Pre-discovered Areas 2 | . . 2 . Known Exits Taken . | . . . . Unknown Exits Taken 3 | 1 1 1 . Scrap Searched 14 | . . 14 . Spaces Dug . | . . . . Terrain Destroyed 98 | . . 17 81 Melee . | . . . . Projectile 6 | . . 5 1 AOE 92 | . . 12 80 Terrain Rammed 7 | . . . 7 Walls Destroyed . | . . . . Machines Disabled . | . . . . Actions | -11 -10 -10 -8 --------- Run | Yrd Mat Sub Mat Total 3057 | 139 110 2668 140 Wait 477 | . 7 469 1 Move 2331 | 120 86 2069 56 Hop . | . . . . Pick Up 22 | 3 5 14 . Fast Attach 13 | 8 . 4 1 Attach 15 | . . 11 4 Detach 13 | 1 . 9 3 Swap 14 | . 1 12 1 Drop 17 | . 2 15 . Fire 94 | 1 8 65 20 Melee . | . . . . Ram 6 | . . . 6 Kick 48 | . . . 48 Crush 7 | 6 1 . . Escape Stasis . | . . . . Rewire . | . . . . Trap . | . . . . Miscellaneous . | . . . . Route ------- -11/Scrapyard -10/Materials (discovered 2 exits: Min / *Sub) -10/Subcaves (discovered 3 exits: *Mat x2 / Rec) -8/Materials History --------- Turn | Location | Event 19 | -11/Scrapyard | Discovered new exit (range 16) 218 | -11/Scrapyard | Entered Materials 305 | -10/Materials | Build established: Mutant 305 | -10/Materials | Identified exit to Mines 383 | -10/Materials | Discovered new exit (range 5) 395 | -10/Materials | Entered Subcaves 396 | -10/Subcaves | Approached by a straggling Scientist 680 | -10/Subcaves | Shifting Twisted Machinery released Sub. Power Source 691 | -10/Subcaves | Shifting Twisted Machinery released Sub. Beam Cannon 952 | -10/Subcaves | A swath of the cavern ceiling suddenly collapsed 1246 | -10/Subcaves | Shifting Twisted Machinery released Flamer 1247 | -10/Subcaves | Shifting Twisted Machinery released Sub. Power Source 1426 | -10/Subcaves | Discovered new exit (range 14) 1476 | -10/Subcaves | A swath of the cavern ceiling suddenly collapsed 1729 | -10/Subcaves | Learned location of Storage (-7) 1917 | -10/Subcaves | Ambushed by angry Subdweller bent on revenge 1918 | -10/Subcaves | Learned location of Zion (-7) 1918 | -10/Subcaves | Met a Zionite searching for "candidates" 1954 | -10/Subcaves | Ambushed by Subdwellers from Twisted Machinery 2579 | -10/Subcaves | Core integrity fell below 50% 3136 | -10/Subcaves | Disturbed a concealed Subdweller 3156 | -10/Subcaves | Core integrity fell below 20% 3200 | -10/Subcaves | Discovered new exit (range 11) 4305 | -10/Subcaves | Visited Clippyterm 4309 | -10/Subcaves | Identified exit to Recycling 4309 | -10/Subcaves | Learned Research machine intel 4466 | -10/Subcaves | Visited 4L-MR0's lab 4492 | -10/Subcaves | Found Cargo Legs 4584 | -10/Subcaves | Shifting Twisted Machinery released Sub. Shrapnel Launcher 4636 | -10/Subcaves | Entered Materials 4636 | -8/Materials | Evolved 4 slots: Propulsion x3, Utility x1 4702 | -8/Materials | Core integrity fell below 50% 4716 | -8/Materials | Attached Cargo Legs, gained temporary slots: Utility x2 4725 | -8/Materials | Lost 6 parts (1p2n3w) 4733 | -8/Materials | Destroyed 9 combat bots 4818 | -8/Materials | Core integrity fell below 20% 4832 | -8/Materials | Released all parts (3) 4838 | -8/Materials | Core destroyed Last Messages --------------- 04827_ Kicked G-47 Trooper. 04827_ G-47 Trooper destroyed. 04831_ Connecting with Terminal... 04831_ Current location identified: Materials 04832_ Released Sml. Storage Unit. 04832_ Released Cargo Legs. 04832_ Released Lrg. Storage Unit. 04832_ Slammed into Wall. 04832_ Destabilizing: System corrupted (+1). 04833_ Temporary Utility slot lost. 04833_ Slammed into Wall. 04833_ Destabilizing: Core damaged (-27). 04834_ Slammed into Wall. 04834_ Destabilizing: System corrupted (+1). 04834_ Destabilizing: Core damaged (-16). 04835_ Slammed into Wall. 04836_ L22EGJQK=4Q8AB5K=VC>AKVRU 04836_ Slammed into Wall. 04837_ Destabilizing: Core damaged (-16). 04838_ Slammed into Wall. Map ----- +----------------------------------------------------+ | | | | | | | | | | | | | | | | | | | | | | | | | | | | | | | | | | | | | | | ?????????????????????????????????????????????????? | | ?????????????????????????????????????????????????? | | ?????????????????????????????????????????????????? | | ?????????????????????????????????????????????????? | | ?????????????????????????????????????????????????? | | ??????????????????????###########????????????????? | | ?????????#####????????# T@!! #????????????????? | | ?????????# ########## """ #????????????????? | | ?????????# ## ! ## """ #????????????????? | | ?????????# ## ## """ #????????????????? | | ?????????# ## "S ## #????????????????? | | #####????# ## """ ## #????????????????? | | # ###?# ## "" ## #????????????????? | | ### ## ??# a #????????????????? | | # ###+#############+####+######??????? | | # ??? | | " " ??? | | # #############+#########?????? | | # #### #???????????????????????????? | | #######??# #???????????????????????????? | | ##????????# #???????????????????????????? | | #?????????# #???????????????????????????? | | " #?????????# #???????????????????????????? | | # #?????????# #???????????????????????????? | | * ?????????# #???????????????????????????? | | ????????? ! ???????????????????????????? | | ???????? ???????????????????????????? | | ???????# " ???????????????????????????? | | % ???????# ???????????????????????????? | | ?????? ? #??????????????????????????? | | % #???????##?##???????????????????????????? | +----------------------------------------------------+ Best States ------------- Heat Dissipation 31 Energy Generation 10 Energy Capacity 250 Matter Stores 300 Matter Capacity 300 Sight Range 16 Terrain Scan Density 10 Evasion (%) 55 Recoil Reduction 2 Item Schematics ----------------- None Robot Schematics ------------------ None Fabricated ------------ Nothing Repaired ---------- Nothing Alien Tech Used ----------------- None Achievements -------------- None Challenges ------------ None Game ------ Seed PropulsionCoilProtection Manual? 0 Play Time 00:23:46 Cumulative 583.4 hours Start 2025.08.23 @ 15:30:22 End 2025.08.23 @ 16:25:58 Sessions 1 Manual Loads 0 Difficulty Rogue Special Mode None Game No. 247 Rogue 247 Adventurer 0 Explorer 0 Win Type - Total 27 Types 9/4/7/2/1/0/1/1/1/1 Lore% 92 Gallery% 87 Achievement% 81 Wizard Run 0 Options --------- Layout 0 ASCII 0 Keyboard 0 Movement Arrows Keybinds 0 Fullscreen 2 Font 18/SmallcapsGlow Map View 76x50 Zoom Use 0% Tactical HUD 1 Map Filters NONE Filters NONE Steam 1 RUN: 9376aecb-d194-429f-9a7a-6e58ce4700e8